fUST/lending_fUST_20250701
["ID","MTS","AMOUNT","RATE_DAILY","PERIOD"]
[368749924,1751344268735,-156.7,0.00021472,5]
[368749925,1751344268753,-12500.0,0.00021473,2]
[368749926,1751344268771,-151.562938,0.00021473,2]
[368749927,1751344268788,-587.0,0.00021498,2]
[368749928,1751344268807,-123720.42065123,0.00021499,2]
[368749929,1751344268824,-151.0,0.00021499,2]
[368749930,1751344268842,-163.672659,0.00021499,2]
[368749931,1751344268859,-163.672659,0.00021499,2]
[368749932,1751344268878,-163.593006,0.00021499,2]
[368749933,1751344268891,-974.80245186,0.00021624,5]
[368749934,1751344268901,-159.0764466,0.00021644,2]
[368749935,1751344268911,-4000.0,0.00021667,4]
[368749936,1751344268921,-826.0,0.00021677,2]
[368749937,1751344268931,-826.0,0.00021694,2]
[368749938,1751344268941,-151.0,0.000217,3]
[368749939,1751344268955,-1987.86,0.00021721,2]
[368749940,1751344268965,-706.49,0.00021721,2]
[368749941,1751344268975,-1636.02,0.00021721,2]
[368749942,1751344268985,-1974.72,0.00021721,2]
[368749943,1751344268995,-598.01,0.00021721,2]
[368749944,1751344269004,-1802.8,0.00021721,2]
[368749945,1751344269014,-2358.11,0.00021721,2]
[368749946,1751344269024,-1525.05,0.00021721,2]
[368749947,1751344269034,-743.78,0.00021721,2]
[368749948,1751344269044,-1345.14,0.00021721,2]
[368749949,1751344269053,-332.79,0.00021721,2]
[368749950,1751344269063,-460.0,0.00021722,2]
[368749951,1751344269072,-673.34,0.00021722,2]
[368749952,1751344269083,-1372.82,0.00021722,2]
[368749953,1751344269094,-342.32,0.00021722,2]
[368749954,1751344269103,-680.43,0.00021722,2]
[368749955,1751344269327,-460.0,0.00021723,2]
[368749956,1751344269342,-460.0,0.00021723,2]
[368749957,1751344269352,-1267.78,0.00021723,2]
[368749958,1751344269362,-1284.89,0.00021723,2]
[368749959,1751344269386,-747.0,0.00021723,2]
[368749960,1751344269397,-1662.44,0.00021723,2]
[368749961,1751344269408,-460.0,0.00021723,2]
[368749962,1751344269422,-756.27,0.00021723,2]
[368749963,1751344269434,-1744.44,0.00021723,2]
[368749964,1751344269444,-460.0,0.00021723,2]
[368749965,1751344269455,-2986.63,0.00021723,2]
[368749966,1751344269465,-318.0,0.00021723,2]
[368749967,1751344269475,-318.0,0.00021723,2]
[368749968,1751344269486,-333.75,0.00021724,2]
[368749969,1751344269496,-460.0,0.00021724,2]
[368749970,1751344269506,-509.95,0.00021724,2]
[368749971,1751344269517,-460.0,0.00021724,2]
[368749972,1751344269526,-3961.56,0.00021724,2]
[368749973,1751344269537,-904.9,0.00021724,2]
[368749974,1751344269547,-969.81,0.00021724,2]
[368749975,1751344269558,-3985.51498097,0.00021742,2]
[368749976,1751344269568,-156.7,0.00021788,5]
[368749977,1751344269578,-974.80245186,0.00021797,6]
[368749978,1751344269587,-800.0,0.00021812,2]
[368749979,1751344269598,-826.0,0.00021847,2]
[368749980,1751344269608,-826.0,0.00021891,2]
[368749981,1751344269618,-2000.0,0.00021905,2]
[368749982,1751344269628,-500.0,0.00021917,2]
[368749983,1751344269638,-500.0,0.00021917,2]
[368749984,1751344269648,-500.0,0.00021917,2]
[368749985,1751344269657,-500.0,0.00021917,2]
[368749986,1751344269668,-500.0,0.00021917,2]
[368749987,1751344269678,-500.0,0.00021917,2]
[368749988,1751344269687,-500.0,0.00021917,2]
[368749989,1751344269698,-371.77925934,0.00021917,2]
[368749990,1751344269708,-151.0,0.00021918,2]
[368749991,1751344269718,-151.0,0.00021918,2]
[368749992,1751344269728,-151.0,0.00021918,2]
[368749993,1751344269738,-151.0,0.00021918,2]
[368749994,1751344269749,-151.0,0.00021918,2]
[368749995,1751344269759,-151.0,0.00021918,2]
[368749996,1751344269770,-151.909402,0.00021918,2]
[368749997,1751344269780,-400.0,0.00021918,7]
[368749998,1751344269791,-150.0,0.00021918,2]
[368749999,1751344269802,-150.0,0.00021918,2]
[368750000,1751344269813,-3000.0,0.0002194,2]
[368750001,1751344269823,-3600.0,0.0002194,2]
[368750002,1751344269834,-800.0,0.0002195,2]
[368750003,1751344269845,-974.80245186,0.00021969,6]
[368750004,1751344269855,-150.0,0.00021973,2]
[368750005,1751344269865,-568.18190022,0.00021973,2]
[368750006,1751344269875,-500.0,0.00021973,2]
[368750007,1751344269885,-500.0,0.00021973,2]
[368750008,1751344269895,-502.37329463,0.00021973,2]
[368750009,1751344269905,-161.028499,0.00021984,7]
[368750010,1751344269915,-17012.46305487,0.0002199,15]
[368750011,1751344269925,-151.0,0.0002199,7]
[368750012,1751344269936,-151.0,0.0002199,7]
[368750013,1751344269947,-183.176996,0.0002199,7]
[368750014,1751344269959,-151.0,0.0002199,7]
[368750015,1751344269969,-500.0,0.0002199,8]
[368750016,1751344269979,-500.0,0.0002199,8]
[368750017,1751344269995,-169.28,0.00021994,2]
[368750018,1751344270006,-1987.86,0.00021995,2]
[368750019,1751344270017,-706.49,0.00021995,2]
[368750020,1751344270029,-1636.02,0.00021995,2]
[368750021,1751344270040,-1974.72,0.00021995,2]
[368750022,1751344270050,-1802.8,0.00021995,2]
[368750023,1751344270060,-2358.11,0.00021995,2]
[368750024,1751344270070,-1525.05,0.00021995,2]
[368750025,1751344270080,-743.78,0.00021995,2]
[368750026,1751344270091,-1345.14,0.00021995,2]
[368750027,1751344270101,-460.0,0.00021996,2]
[368750028,1751344270113,-673.34,0.00021996,2]
[368750029,1751344270123,-1372.82,0.00021996,2]
[368750030,1751344270133,-680.43,0.00021996,2]
[368750031,1751344270144,-460.0,0.00021997,2]
[368750032,1751344270154,-460.0,0.00021997,2]
[368750033,1751344270164,-151.0,0.00021997,7]
[368750034,1751344270175,-194.317061,0.00021997,7]
[368750035,1751344270186,-151.0,0.00021997,7]
[368750036,1751344270196,-151.0,0.00021997,7]
[368750037,1751344270206,-370.006665,0.00021997,7]
[368750038,1751344270217,-370.006665,0.00021997,7]
[368750039,1751344270227,-1267.78,0.00021997,2]
[368750040,1751344270238,-206.329157,0.00021997,7]
[368750041,1751344270249,-206.329157,0.00021997,7]
[368750042,1751344270259,-1284.89,0.00021997,2]
[368750043,1751344270269,-747.0,0.00021997,2]
[368750044,1751344270278,-1662.44,0.00021997,2]
[368750045,1751344270289,-151.0,0.00021997,7]
[368750046,1751344270300,-400.85098168,0.00021997,2]
[368750047,1751344270310,-756.27,0.00021997,2]
[368750048,1751344270320,-1744.44,0.00021997,2]
[368750049,1751344270330,-460.0,0.00021997,2]
[368750050,1751344270341,-2986.63,0.00021997,2]
[368750051,1751344270351,-151.0,0.00021998,7]
[368750052,1751344270361,-151.0,0.00021998,7]
[368750053,1751344270371,-159.205396,0.00021998,7]
[368750054,1751344270381,-151.0,0.00021998,7]
[368750055,1751344270391,-151.0,0.00021998,7]
[368750056,1751344270402,-151.0,0.00021998,7]
[368750057,1751344270412,-222.430805,0.00021998,7]
[368750058,1751344270423,-222.430805,0.00021998,7]
[368750059,1751344270433,-195.336888,0.00021998,2]
[368750060,1751344270444,-195.336888,0.00021998,2]
[368750061,1751344270454,-460.0,0.00021998,2]
[368750062,1751344270466,-171.39148,0.00021998,7]
[368750063,1751344270476,-171.39148,0.00021998,7]
[368750064,1751344270486,-509.95,0.00021998,2]
[368750065,1751344270496,-460.0,0.00021998,2]
[368750066,1751344270505,-3961.56,0.00021998,2]
[368750067,1751344270516,-904.9,0.00021998,2]
[368750068,1751344270526,-969.81,0.00021998,2]
[368750069,1751344270535,-86097.22085827,0.00021999,2]
[368750070,1751344270554,-12908.48636483,0.00021999,2]
[368750074,1751344669915,11839.7614299,0.00017159,2]
[368750076,1751344864145,762.39686195,0.0001796,2]
[368750080,1751344905406,1130.0525688,0.00024954,60]
[368750081,1751345051122,8504.87,0.00018013,2]
[368750082,1751345131455,415.0,0.00024,120]
[368750083,1751345142131,-300.0,0.00018057,2]
[368750084,1751345142153,-300.0,0.00018057,2]
[368750085,1751345142177,-160.93643536,0.00018057,2]
[368750086,1751345145515,667.09725425,0.00017959,2]
[368750087,1751345214060,293.803555,0.00013699,2]
[368750088,1751345254084,-1039.06356464,0.00018057,2]
[368750089,1751345254107,-605.37599411,0.00018057,2]
[368750091,1751345353102,-484.316,0.00018057,2]
[368750119,1751345432564,-284.91981695,0.00018042,2]
[368750120,1751345432575,-300.0,0.00018056,2]
[368750121,1751345432584,-300.0,0.00018056,2]
[368750122,1751345432594,-300.0,0.00018056,2]
[368750123,1751345432604,-1200.0,0.00018056,2]
[368750124,1751345432615,-110.30800589,0.00018057,2]
[368750125,1751345432624,-460.0,0.00018057,2]
[368750126,1751345432634,-460.0,0.00018057,2]
[368750127,1751345432643,-460.0,0.00018057,2]
[368750128,1751345432653,-460.0,0.00018057,2]
[368750129,1751345432663,-460.0,0.00018057,2]
[368750130,1751345432674,-81.96937111,0.00018057,2]
[368750131,1751345432686,-378.82901398,0.00018057,2]
[368750132,1751345432696,-157.11889734,0.00018057,2]
[368750133,1751345432739,-321.12148892,0.00018057,2]
[368750134,1751345432748,-465.67555228,0.00018057,2]
[368750135,1751345432758,-461.34723939,0.00018057,2]
[368750136,1751345432767,-144.42458276,0.00018057,2]
[368750141,1751345438682,-315.57541724,0.00018057,2]
[368750142,1751345438693,-460.0,0.00018057,2]
[368750143,1751345438702,-460.0,0.00018057,2]
[368750144,1751345438712,-87.22348576,0.00018057,2]
[368750145,1751345438733,-412.77651424,0.00018057,2]
[368750146,1751345438743,-460.0,0.00018058,2]
[368750147,1751345438754,-420.0,0.00018058,2]
[368750148,1751345438764,-460.0,0.00018058,2]
[368750149,1751345438774,-460.0,0.00018058,2]
[368750150,1751345438784,-291.53348576,0.00018058,2]
[368750151,1751345438801,-168.46651424,0.00018058,2]
[368750152,1751345438811,-460.0,0.00018058,2]
[368750153,1751345438820,-460.0,0.00018058,2]
[368750154,1751345438830,-460.0,0.00018058,2]
[368750155,1751345438840,-393.10531471,0.00018058,2]
[368750156,1751345438849,-460.0,0.00018058,2]
[368750157,1751345438860,-460.0,0.00018058,2]
[368750158,1751345438869,-460.0,0.00018058,2]
[368750159,1751345438879,-460.0,0.00018058,2]
[368750160,1751345438889,-518.68,0.00018058,2]
[368750162,1751345438898,-1498.38,0.00018058,2]
[368750163,1751345438907,-460.0,0.00018058,2]
[368750164,1751345438917,-460.0,0.00018058,2]
[368750165,1751345438927,-1143.47,0.00018058,2]
[368750166,1751345438936,-460.0,0.00018058,2]
[368750167,1751345438946,-460.0,0.00018058,2]
[368750168,1751345438955,-460.0,0.00018058,2]
[368750169,1751345438965,-460.0,0.00018058,2]
[368750170,1751345438974,-460.0,0.00018058,2]
[368750171,1751345438984,-460.0,0.00018058,2]
[368750172,1751345438994,-460.0,0.00018058,2]
[368750173,1751345439003,-460.0,0.00018058,2]
[368750174,1751345439013,-532.3,0.00018058,2]
[368750175,1751345439022,-460.0,0.00018058,2]
[368750176,1751345439032,-460.0,0.00018058,2]
[368750177,1751345439042,-460.0,0.00018058,2]
[368750178,1751345439052,-460.0,0.00018058,2]
[368750179,1751345439062,-460.0,0.00018058,2]
[368750180,1751345439072,-1268.92,0.00018058,2]
[368750181,1751345439082,-460.0,0.00018058,2]
[368750182,1751345439092,-1475.83,0.00018058,2]
[368750183,1751345439102,-467.5406635,0.00018058,2]
[368750184,1751345439112,-555.37,0.00018058,2]
[368750185,1751345439122,-460.0,0.00018058,2]
[368750186,1751345439132,-1680.79,0.00018058,2]
[368750187,1751345439142,-460.0,0.00018058,2]
[368750188,1751345439153,-460.0,0.00018058,2]
[368750189,1751345439163,-460.0,0.00018058,2]
[368750190,1751345439174,-460.0,0.00018058,2]
[368750191,1751345439184,-460.0,0.00018058,2]
[368750192,1751345439194,-460.0,0.00018058,2]
[368750193,1751345439204,-519.32,0.00018058,2]
[368750194,1751345439214,-460.0,0.00018058,2]
[368750195,1751345439224,-460.0,0.00018058,2]
[368750196,1751345439234,-460.0,0.00018058,2]
[368750197,1751345439244,-460.0,0.00018058,2]
[368750198,1751345439255,-460.0,0.00018058,2]
[368750199,1751345439265,-460.0,0.00018058,2]
[368750200,1751345439276,-460.0,0.00018058,2]
[368750201,1751345439286,-460.0,0.00018058,2]
[368750202,1751345439296,-460.0,0.00018058,2]
[368750203,1751345439307,-460.0,0.00018058,2]
[368750204,1751345439318,-1034.54,0.00018058,2]
[368750205,1751345439328,-556.79518526,0.00018058,2]
[368750206,1751345439339,-460.0,0.00018058,2]
[368750207,1751345439349,-384.74975239,0.00018058,2]
[368750208,1751345439360,-460.0,0.00018058,2]
[368750209,1751345439371,-886.45,0.00018058,2]
[368750210,1751345439380,-460.0,0.00018058,2]
[368750211,1751345439391,-460.0,0.00018058,2]
[368750212,1751345439402,-460.0,0.00018058,2]
[368750214,1751345439412,-460.0,0.00018058,2]
[368750216,1751345439423,-460.0,0.00018058,2]
[368750217,1751345439434,-460.0,0.00018058,2]
[368750218,1751345439445,-460.0,0.00018058,2]
[368750219,1751345439456,-574.78,0.00018058,2]
[368750220,1751345439466,-460.0,0.00018058,2]
[368750221,1751345439476,-462.15474306,0.00018059,2]
[368750222,1751345439487,-460.0,0.00018059,2]
[368750223,1751345439500,-460.0,0.00018059,2]
[368750224,1751345439511,-460.0,0.00018059,2]
[368750225,1751345439522,-460.0,0.00018059,2]
[368750226,1751345439534,-460.0,0.00018059,2]
[368750227,1751345439546,-460.0,0.00018059,2]
[368750228,1751345439556,-460.0,0.00018059,2]
[368750229,1751345439566,-460.0,0.00018059,2]
[368750230,1751345439579,-460.0,0.00018059,2]
[368750231,1751345439591,-460.0,0.00018059,2]
[368750232,1751345439601,-460.0,0.00018059,2]
[368750233,1751345439764,-460.0,0.00018059,2]
[368750234,1751345439776,-460.0,0.00018059,2]
[368750235,1751345439787,-460.0,0.00018059,2]
[368750236,1751345439797,-466.51049331,0.00018059,2]
[368750237,1751345439807,-460.0,0.00018059,2]
[368750238,1751345439818,-460.0,0.00018059,2]
[368750239,1751345439828,-460.0,0.00018059,2]
[368750240,1751345439838,-460.0,0.00018059,2]
[368750241,1751345439848,-460.0,0.00018059,2]
[368750242,1751345439858,-460.0,0.00018059,2]
[368750243,1751345439870,-460.0,0.00018059,2]
[368750244,1751345439881,-460.0,0.00018059,2]
[368750245,1751345439891,-460.0,0.00018059,2]
[368750246,1751345439902,-460.0,0.00018059,2]
[368750247,1751345439911,-460.0,0.00018059,2]
[368750248,1751345439922,-460.0,0.00018059,2]
[368750249,1751345439933,-460.0,0.00018059,2]
[368750250,1751345439943,-530.89,0.00018059,2]
[368750251,1751345439954,-460.0,0.00018059,2]
[368750252,1751345439964,-460.0,0.00018059,2]
[368750253,1751345439974,-460.0,0.00018059,2]
[368750254,1751345439983,-460.0,0.00018059,2]
[368750255,1751345439993,-460.0,0.00018059,2]
[368750256,1751345440003,-460.0,0.00018059,2]
[368750257,1751345440013,-460.0,0.00018059,2]
[368750258,1751345440023,-585.19,0.00018059,2]
[368750259,1751345440033,-460.0,0.00018059,2]
[368750260,1751345440043,-460.0,0.00018059,2]
[368750261,1751345440053,-246.65686116,0.00018059,2]
[368750262,1751345440063,-460.0,0.00018059,2]
[368750263,1751345440073,-460.0,0.00018059,2]
[368750264,1751345440083,-460.0,0.00018059,2]
[368750265,1751345440093,-460.0,0.00018059,2]
[368750266,1751345440103,-460.0,0.00018059,2]
[368750267,1751345440114,-472.86,0.00018059,2]
[368750268,1751345440124,-460.0,0.00018059,2]
[368750269,1751345440134,-460.0,0.00018059,2]
[368750270,1751345440144,-460.0,0.00018059,2]
[368750271,1751345440154,-460.0,0.00018059,2]
[368750272,1751345440164,-500.0,0.00018059,2]
[368750273,1751345440174,-460.0,0.00018059,2]
[368750274,1751345440184,-460.0,0.00018059,2]
[368750275,1751345440194,-1006.22,0.00018059,2]
[368750276,1751345440205,-460.0,0.00018059,2]
[368750277,1751345440215,-460.0,0.00018059,2]
[368750278,1751345440225,-460.0,0.00018059,2]
[368750279,1751345440235,-460.0,0.00018059,2]
[368750280,1751345440246,-460.0,0.00018059,2]
[368750281,1751345440256,-460.0,0.00018059,2]
[368750282,1751345440266,-460.0,0.00018059,2]
[368750283,1751345440276,-460.0,0.00018059,2]
[368750284,1751345440286,-460.0,0.00018059,2]
[368750285,1751345440296,-460.0,0.00018059,2]
[368750286,1751345440306,-460.0,0.00018059,2]
[368750287,1751345440316,-460.0,0.00018059,2]
[368750288,1751345440326,-461.04882165,0.00018059,2]
[368750289,1751345440336,-460.0,0.00018059,2]
[368750290,1751345440346,-415.39,0.00018059,2]
[368750291,1751345440356,-460.0,0.00018059,2]
[368750292,1751345440367,-460.0,0.00018059,2]
[368750293,1751345440377,-460.0,0.00018059,2]
[368750294,1751345440387,-171.14,0.00018059,2]
[368750295,1751345440396,-460.0,0.00018059,2]
[368750296,1751345440405,-460.0,0.00018059,2]
[368750297,1751345440415,-460.0,0.00018059,2]
[368750298,1751345440425,-460.0,0.00018059,2]
[368750299,1751345440435,-460.0,0.00018059,2]
[368750300,1751345440445,-460.0,0.00018059,2]
[368750301,1751345440454,-460.0,0.00018059,2]
[368750302,1751345440463,-460.0,0.00018059,2]
[368750303,1751345440473,-460.0,0.00018059,2]
[368750304,1751345440484,-460.0,0.00018059,2]
[368750305,1751345440494,-460.0,0.00018059,2]
[368750306,1751345440506,-460.0,0.00018059,2]
[368750307,1751345440516,-460.0,0.00018059,2]
[368750308,1751345440526,-460.0,0.00018059,2]
[368750309,1751345440535,-460.0,0.00018059,2]
[368750310,1751345440546,-460.0,0.00018059,2]
[368750311,1751345440555,-463.72754686,0.00018059,2]
[368750312,1751345440565,-460.0,0.00018059,2]
[368750313,1751345440574,-460.0,0.00018059,2]
[368750314,1751345440584,-460.0,0.00018059,2]
[368750315,1751345440593,-460.0,0.00018059,2]
[368750316,1751345440602,-460.0,0.00018059,2]
[368750317,1751345440611,-460.0,0.00018059,2]
[368750318,1751345440621,-460.0,0.00018059,2]
[368750319,1751345440630,-460.0,0.00018059,2]
[368750320,1751345440639,-525.71897668,0.00018059,2]
[368750321,1751345440649,-460.0,0.00018059,2]
[368750322,1751345440658,-570.39,0.00018059,2]
[368750323,1751345440667,-460.0,0.00018059,2]
[368750324,1751345440677,-460.0,0.00018059,2]
[368750325,1751345440686,-460.0,0.00018059,2]
[368750327,1751345440695,-460.0,0.00018059,2]
[368750328,1751345440704,-460.0,0.0001806,2]
[368750329,1751345440714,-460.0,0.0001806,2]
[368750330,1751345440723,-462.01367544,0.0001806,2]
[368750331,1751345440733,-460.0,0.0001806,2]
[368750332,1751345440743,-461.73015633,0.0001806,2]
[368750333,1751345440753,-460.56297015,0.0001806,2]
[368750334,1751345440763,-460.0,0.0001806,2]
[368750335,1751345440773,-460.0,0.0001806,2]
[368750336,1751345440783,-460.0,0.0001806,2]
[368750337,1751345440792,-460.0,0.0001806,2]
[368750338,1751345440802,-460.0,0.0001806,2]
[368750339,1751345440812,-460.0,0.0001806,2]
[368750340,1751345440822,-460.0,0.0001806,2]
[368750341,1751345440832,-460.0,0.0001806,2]
[368750343,1751345440841,-460.0,0.0001806,2]
[368750344,1751345440851,-460.0,0.0001806,2]
[368750345,1751345440861,-1000.0,0.0001806,2]
[368750346,1751345440872,-460.0,0.0001806,2]
[368750347,1751345440881,-460.0,0.0001806,2]
[368750348,1751345440891,-460.0,0.0001806,2]
[368750349,1751345440901,-460.0,0.0001806,2]
[368750350,1751345440911,-460.0,0.0001806,2]
[368750351,1751345440921,-460.0,0.0001806,2]
[368750352,1751345440931,-537.21973376,0.0001806,2]
[368750353,1751345440942,-460.0,0.0001806,2]
[368750354,1751345440952,-460.0,0.0001806,2]
[368750355,1751345440961,-460.0,0.0001806,2]
[368750356,1751345440971,-460.0,0.0001806,2]
[368750357,1751345440981,-409.63938285,0.0001806,2]
[368750358,1751345440990,-460.0,0.0001806,2]
[368750359,1751345440999,-460.0,0.0001806,2]
[368750360,1751345441009,-460.0,0.0001806,2]
[368750361,1751345441019,-460.0,0.0001806,2]
[368750362,1751345441028,-460.0,0.0001806,2]
[368750363,1751345441039,-460.0,0.0001806,2]
[368750364,1751345441048,-460.0,0.0001806,2]
[368750365,1751345441057,-460.0,0.0001806,2]
[368750366,1751345441067,-460.0,0.0001806,2]
[368750367,1751345441076,-500.0,0.0001806,2]
[368750368,1751345441086,-500.0,0.0001806,2]
[368750369,1751345441096,-500.0,0.0001806,2]
[368750370,1751345441105,-531.45023564,0.0001806,2]
[368750371,1751345441115,-460.0,0.0001806,2]
[368750372,1751345441124,-460.0,0.0001806,2]
[368750373,1751345441134,-460.0,0.0001806,2]
[368750374,1751345441144,-460.0,0.0001806,2]
[368750375,1751345441154,-460.0,0.0001806,2]
[368750376,1751345441163,-460.70406957,0.0001806,2]
[368750377,1751345441173,-460.0,0.0001806,2]
[368750378,1751345441183,-615.3,0.0001806,2]
[368750379,1751345441192,-460.0,0.0001806,2]
[368750380,1751345441202,-460.0,0.0001806,2]
[368750381,1751345441212,-195.0957757,0.0001806,2]
[368750382,1751345441222,-460.0,0.0001806,2]
[368750383,1751345441232,-514.29,0.0001806,2]
[368750384,1751345441241,-460.0,0.0001806,2]
[368750385,1751345441250,-460.0,0.0001806,2]
[368750386,1751345441260,-460.0,0.0001806,2]
[368750387,1751345441269,-460.0,0.0001806,2]
[368750388,1751345441278,-463.14666261,0.0001806,2]
[368750389,1751345441288,-500.0,0.00018156,2]
[368750390,1751345441297,-500.0,0.00018156,2]
[368750391,1751345441307,-307.50605033,0.00018156,2]
[368750392,1751345441317,-157.69658454,0.00018156,2]
[368750393,1751345441327,-500.0,0.00018156,2]
[368750394,1751345441337,-415.22048187,0.00018156,2]
[368750395,1751345441347,-500.0,0.00018156,2]
[368750396,1751345441357,-500.0,0.00018156,2]
[368750397,1751345441367,-500.0,0.00018156,2]
[368750398,1751345441377,-500.0,0.00018156,2]
[368750399,1751345441386,-500.0,0.00018156,2]
[368750400,1751345441395,-500.0,0.00018156,2]
[368750401,1751345441405,-500.0,0.00018156,2]
[368750402,1751345441414,-500.0,0.00018156,2]
[368750403,1751345441424,-460.0,0.00018157,2]
[368750404,1751345441433,-332.11100973,0.00018157,2]
[368750405,1751345441443,-460.0,0.00018157,2]
[368750406,1751345441452,-460.0,0.00018157,2]
[368750407,1751345441463,-460.0,0.00018157,2]
[368750408,1751345441472,-500.0,0.00018157,2]
[368750409,1751345441481,-500.0,0.00018157,2]
[368750410,1751345441492,-2566.32,0.00018157,2]
[368750411,1751345441503,-613.13,0.00018157,2]
[368750412,1751345441513,-893.64,0.00018157,2]
[368750413,1751345441522,-460.0,0.00018158,2]
[368750414,1751345441532,-460.0,0.00018158,2]
[368750415,1751345441542,-460.0,0.00018158,2]
[368750416,1751345441552,-460.0,0.00018158,2]
[368750417,1751345441562,-460.0,0.00018158,2]
[368750418,1751345441572,-460.0,0.00018158,2]
[368750419,1751345441583,-460.0,0.00018158,2]
[368750420,1751345441593,-461.10573033,0.00018158,2]
[368750421,1751345441604,-460.0,0.00018158,2]
[368750422,1751345441614,-461.42783183,0.00018158,2]
[368750423,1751345441624,-460.0,0.00018158,2]
[368750424,1751345441633,-460.0,0.00018158,2]
[368750425,1751345441642,-404.74596181,0.00018158,2]
[368750426,1751345441652,-460.45469947,0.00018158,2]
[368750427,1751345441662,-460.0,0.00018158,2]
[368750428,1751345441671,-460.0,0.00018158,2]
[368750429,1751345441681,-460.0,0.00018158,2]
[368750430,1751345441691,-460.0,0.00018158,2]
[368750431,1751345441700,-461.36768759,0.00018158,2]
[368750432,1751345441710,-460.0,0.00018158,2]
[368750433,1751345441720,-460.0,0.00018158,2]
[368750434,1751345441730,-460.0,0.00018158,2]
[368750435,1751345441740,-460.0,0.00018158,2]
[368750436,1751345441750,-460.0,0.00018158,2]
[368750437,1751345441759,-460.0,0.00018158,2]
[368750438,1751345441771,-308.17567516,0.00018158,2]
[368750439,1751345441781,-461.10626087,0.00018158,2]
[368750440,1751345441791,-460.0,0.00018158,2]
[368750441,1751345441801,-460.0,0.00018158,2]
[368750442,1751345441811,-460.0,0.00018158,2]
[368750443,1751345441821,-460.0,0.00018158,2]
[368750444,1751345441830,-460.0,0.00018158,2]
[368750445,1751345441840,-460.0,0.00018158,2]
[368750446,1751345441849,-460.0,0.00018158,2]
[368750447,1751345441859,-460.0,0.00018158,2]
[368750448,1751345441870,-460.0,0.00018158,2]
[368750449,1751345441879,-607.72434884,0.00018158,2]
[368750450,1751345441889,-460.0,0.00018158,2]
[368750451,1751345441900,-460.0,0.00018158,2]
[368750452,1751345442016,-460.0,0.00018158,2]
[368750453,1751345442027,-460.0,0.00018158,2]
[368750454,1751345442038,-460.0,0.00018158,2]
[368750455,1751345442049,-460.0,0.00018158,2]
[368750456,1751345442059,-460.0,0.00018158,2]
[368750457,1751345442069,-460.0,0.00018158,2]
[368750458,1751345442079,-460.0,0.00018158,2]
[368750459,1751345442089,-460.0,0.00018158,2]
[368750460,1751345442100,-460.0,0.00018158,2]
[368750461,1751345442110,-460.0,0.00018158,2]
[368750462,1751345442121,-460.0,0.00018158,2]
[368750463,1751345442131,-460.0,0.00018158,2]
[368750464,1751345442141,-460.0,0.00018158,2]
[368750465,1751345442151,-574.09947951,0.00018158,2]
[368750466,1751345442161,-460.0,0.00018158,2]
[368750467,1751345442171,-460.0,0.00018158,2]